bitfinex-derivatives/quotes_BNBF0:USTF0_20250116
["timestamp","ask_amount","ask_price","bid_price","bid_amount"]
[1737029459973,1.04304412,713.54,712.22,1.738]
[1737029461074,2.12954841,714.22,712.22,1.738]
[1737029461075,1.04304412,714.2,712.22,1.738]
[1737029461973,1.04304412,714.19,712.22,1.738]
[1737029463176,1.04304412,714.25,712.22,1.738]
[1737029464175,1.04304412,713.74,712.22,1.738]
[1737029465575,2.12954841,714.48,712.22,1.738]
[1737029465576,1.04304412,714.09,712.22,1.738]
[1737029466473,1.04304412,714.09,712.23,0.25786494]
[1737029466682,1.04304412,713.92,712.23,0.25786494]
[1737029467778,1.04304412,713.61,712.26,1.03322869]
[1737029467978,1.04304412,713.61,712.27,0.25786494]
[1737029468379,1.04304412,713.61,712.29,1.03322869]
[1737029468580,1.04304412,713.61,712.3,0.25785268]
[1737029469473,1.04304412,713.61,712.31,0.25785268]
[1737029469678,1.04304412,713.61,712.28,1.29108136]
[1737029470078,1.04304412,713.64,712.28,1.29108136]
[1737029470479,1.04304412,713.64,712.28,1.03322869]
[1737029471290,1.04304412,713.87,712.23,0.759]
[1737029472278,3.29069732,714.46,712.23,0.759]
[1737029472279,1.04304412,713.89,712.23,0.759]
[1737029473317,1.04304412,713.84,712.23,0.759]
[1737029474581,1.04304412,713.76,712.23,0.759]
[1737029475585,2.12954841,714.25,712.23,0.759]
[1737029475586,1.04304412,713.61,712.23,0.759]
[1737029476485,1.04304412,713.63,712.23,0.759]
[1737029477082,1.04304412,713.64,712.23,0.759]
[1737029477886,1.04304412,713.61,712.23,0.759]
[1737029478883,1.04304412,713.57,712.23,0.759]
[1737029480680,1.04304412,713.54,712.23,0.759]
[1737029481786,1.04304412,713.57,712.23,0.759]
[1737029481988,0.28028476,713.56,712.23,0.759]
[1737029482886,1.04304412,713.54,712.23,0.759]
[1737029484487,1.04304412,713.52,712.23,0.759]
[1737029484889,1.04304412,713.52,712.24,0.25788567]
[1737029485290,1.04304412,713.52,712.25,0.25788567]
[1737029485491,1.04304412,713.52,712.26,0.25787601]
[1737029485811,1.04304412,713.55,712.27,0.25787601]
[1737029485985,1.04304412,713.55,712.28,0.25787601]
[1737029486191,1.04304412,713.55,712.29,0.25787601]
[1737029486391,1.04304412,713.55,712.28,0.732]
[1737029486593,1.04304412,713.55,712.29,0.25786437]
[1737029486792,0.28028476,713.56,712.29,0.25786437]
[1737029487385,0.28028476,713.56,712.28,0.732]
[1737029489493,0.28028476,713.56,712.29,0.25784697]
[1737029489792,0.28028476,713.56,712.28,0.732]
[1737029496595,0.28028476,713.56,712.29,0.25780697]
[1737029498198,0.28028476,713.56,712.36,1.03322869]
[1737029498496,0.28028476,713.56,712.37,0.25780697]
[1737029499496,0.28028476,713.56,712.38,1.03322869]
[1737029499695,0.28028476,713.56,712.39,0.25780697]
[1737029500003,0.28028476,713.56,712.39,0.53855206]
[1737029500202,0.28028476,713.56,712.43,1.03322869]
[1737029500393,0.28028476,713.56,712.44,0.25780697]
[1737029500802,0.28028476,713.56,712.43,1.03322869]
[1737029501304,0.28028476,713.56,712.39,0.28074509]
[1737029505501,0.28028476,713.56,712.4,0.25774438]
[1737029506601,1.04304412,714.36,712.4,0.25774438]
[1737029506801,0.27997872,714.34,712.41,0.25771118]
[1737029507004,0.27997872,714.34,712.42,0.25771118]
[1737029507201,0.27997872,714.34,712.43,0.25771118]
[1737029507503,0.27997872,714.34,712.44,0.25771118]
[1737029507696,0.27997872,714.34,712.45,0.25771118]
[1737029507901,0.27997872,714.34,712.46,0.25771118]
[1737029508094,0.27997872,714.34,712.39,1.08474509]
[1737029508095,0.27997872,714.34,712.47,0.25771118]
[1737029508299,0.27997872,714.34,712.48,0.25771118]
[1737029508503,0.27997872,714.34,712.49,0.25771118]
[1737029508705,1.04304412,714.32,712.5,0.25771118]
[1737029508903,1.04304412,714.32,712.51,0.25771118]
[1737029509103,1.04304412,714.32,712.52,0.25771118]
[1737029509303,0.27997872,714.34,712.53,0.25771118]
[1737029509304,1.32302284,714.34,712.53,0.25771118]
[1737029509504,1.32302284,714.34,712.54,0.25771374]
[1737029509703,1.32302284,714.34,712.55,0.25771374]
[1737029509904,1.32302284,714.34,712.56,0.25771374]
[1737029510107,1.32302284,714.34,712.57,0.25771374]
[1737029510407,0.27997872,714.34,712.58,0.25771374]
[1737029510607,0.27997872,714.34,712.59,0.25771374]
[1737029510807,0.27997872,714.34,712.6,0.25771374]
[1737029511009,0.27997872,714.34,712.39,1.08474509]
[1737029513715,0.27997872,714.34,712.4,0.25776909]
[1737029513908,0.27997872,714.34,712.39,1.08474509]
[1737029514308,0.27997872,714.34,712.4,0.25777098]
[1737029514910,0.27997872,714.34,712.39,1.08474509]
[1737029515212,1.04304412,714.28,712.39,1.08474509]
[1737029515510,1.04304412,714.28,712.4,0.25775904]
[1737029516113,1.04304412,714.32,712.4,0.25775904]
[1737029516507,1.04304412,714.32,712.4,1.51875904]
[1737029516716,1.04304412,714.32,712.41,0.25775904]
[1737029517420,0.27997872,714.34,712.41,0.25775904]
[1737029517421,1.04304412,714.33,712.41,0.25775904]
[1737029517718,1.04304412,714.33,712.4,1.261]
[1737029517908,1.04304412,714.33,712.41,0.25771587]
[1737029518312,1.04304412,714.26,712.41,1.29094456]
[1737029518513,1.04304412,714.26,712.42,0.25771275]
[1737029519809,1.04304412,714.26,712.47,1.03322869]
[1737029520007,1.04304412,714.26,712.48,0.25771275]
[1737029520615,0.27997872,714.34,712.4,1.261]
[1737029520616,1.04304412,714.23,712.49,1.03322869]
[1737029520810,1.04304412,714.23,712.5,0.25770488]
[1737029521717,1.04304412,714.22,712.51,1.03322869]
[1737029521914,1.04304412,714.22,712.52,0.25770488]
[1737029522617,1.04304412,714.21,712.53,0.25772211]
[1737029522914,1.04304412,714.21,712.54,0.25772211]
[1737029523224,1.04304412,714.21,712.55,0.25772211]
[1737029523420,1.04304412,714.21,712.56,0.25772211]
[1737029523618,1.04304412,714.21,712.57,0.25772211]
[1737029523814,1.04304412,714.21,712.58,0.25772211]
[1737029524006,1.04304412,714.21,712.59,0.25772211]
[1737029524218,1.04304412,714.21,712.6,0.25772211]
[1737029524419,0.27997872,714.34,712.61,0.25772211]
[1737029524420,1.04304412,714.23,712.61,0.25772211]
[1737029524622,1.04304412,714.23,712.62,0.25772211]
[1737029524816,1.04304412,714.23,712.52,0.963]
[1737029525114,0.28002968,714.21,712.53,0.25772226]
[1737029526216,1.04304412,714.2,712.54,0.25771814]
[1737029526410,1.04304412,714.2,712.55,0.25771814]
[1737029526618,1.04304412,714.2,712.56,0.25771814]
[1737029526915,1.04304412,714.2,712.57,0.25771814]
[1737029527230,0.28002968,714.21,712.52,0.963]
[1737029527414,0.28002968,714.21,712.53,0.25772309]
[1737029527912,1.3230738,714.21,712.53,0.25772309]
[1737029528922,1.04304412,714.19,712.53,0.25772309]
[1737029529813,1.04304412,714.15,712.53,0.25772309]
[1737029530519,1.04304412,714.15,712.52,1.99622869]
[1737029530718,0.28002968,714.21,712.52,1.99622869]
[1737029530719,1.04304412,714.13,712.53,1.03322869]
[1737029531420,0.28002968,714.21,712.52,0.963]
[1737029531421,1.04304412,714.19,712.52,0.963]
[1737029532522,0.28002968,714.21,712.53,1.03322869]
[1737029532523,1.04304412,714.17,712.53,1.03322869]
[1737029533519,1.04304412,714.17,712.52,0.963]
[1737029533520,1.04304412,714.13,712.55,1.03322869]
[1737029534522,1.04304412,714.07,712.55,1.03322869]
[1737029535023,0.28009243,714.05,712.55,1.03322869]
[1737029535626,0.28009243,714.05,712.52,0.963]
[1737029535627,1.04304412,714.0,712.52,0.963]
[1737029536620,1.04304412,714.02,712.52,0.963]
[1737029536820,0.28011204,714.0,712.52,0.963]
[1737029537728,1.04304412,713.96,712.52,0.963]
[1737029539321,0.28011204,714.0,712.52,0.963]
[1737029540327,1.04304412,713.95,712.52,0.963]
[1737029541727,0.28011204,714.0,712.52,0.963]
[1737029543123,0.28011204,714.0,712.53,0.25773263]
[1737029543528,0.28011204,714.0,712.54,0.25773263]
[1737029543730,0.28011204,714.0,712.55,0.25773263]
[1737029543927,0.28011204,714.0,712.56,0.25773263]
[1737029544137,0.28011204,714.0,712.58,1.03322869]
[1737029544331,0.28011204,714.0,712.59,0.25773263]
[1737029544528,0.28011204,714.0,712.59,1.33573263]
[1737029544732,0.28011204,714.0,712.59,1.078]
[1737029544937,1.04304412,713.95,712.68,1.03322869]
[1737029545837,0.28011204,714.0,712.63,1.03322869]
[1737029547128,0.28011204,714.0,712.61,1.03322869]
[1737029548036,0.28011204,714.0,712.62,1.03322869]
[1737029548833,0.28011204,714.0,712.65,1.03322869]
[1737029549850,0.28011204,714.0,712.63,1.03322869]
[1737029550535,0.28011204,714.0,712.64,0.25769261]
[1737029550735,0.28011204,714.0,712.64,1.03322869]
[1737029552839,0.28011204,714.0,712.59,2.11122869]
[1737029553669,0.28011204,714.0,712.6,1.03322869]
[1737029554741,0.28011204,714.0,712.59,1.078]
[1737029555544,0.28011204,714.0,712.6,0.28066236]
[1737029557146,0.28011204,714.0,712.61,0.2576689]
[1737029557440,0.28011204,714.0,712.62,0.28065448]
[1737029557651,0.28011204,714.0,712.63,0.2576689]
[1737029557840,0.28011204,714.0,712.64,0.2806466]
[1737029558042,0.28011204,714.0,712.66,1.03322869]
[1737029558248,0.28011204,714.0,712.67,0.2576689]
[1737029558442,0.28011204,714.0,712.68,0.25761764]
[1737029558641,0.28011204,714.0,712.69,0.25761764]
[1737029558842,0.28011204,714.0,712.7,0.25761764]
[1737029559042,0.28011204,714.0,712.66,1.03322869]
[1737029559242,0.28011204,714.0,712.67,0.25762178]
[1737029559541,0.28011204,714.0,712.68,0.28063085]
[1737029559838,0.28011204,714.0,712.69,0.25763588]
[1737029560052,1.04304412,714.61,712.68,0.28063085]
[1737029560292,0.27988077,714.59,712.69,0.2575797]
[1737029560443,1.04304412,714.57,712.69,0.2575797]
[1737029561243,1.04304412,714.57,712.7,0.25755853]
[1737029561444,1.04304412,714.57,712.68,0.28063085]
[1737029561445,1.04304412,714.57,712.71,0.25755853]
[1737029561644,0.27988077,714.59,712.68,0.28063085]
[1737029561847,0.27988077,714.59,712.69,0.25757652]
[1737029562841,0.27988077,714.59,712.68,0.28063085]
[1737029563844,0.27988077,714.59,712.69,0.25749832]
[1737029564144,0.27988077,714.59,712.68,1.65863085]
[1737029564345,0.27988077,714.59,712.69,0.25749968]
[1737029564545,0.27988077,714.59,712.68,1.65863085]
[1737029565239,0.27988077,714.59,712.69,0.25750498]
[1737029565638,0.27988077,714.59,712.69,0.99950498]
[1737029565840,0.27988077,714.59,712.7,0.25750498]
[1737029567444,0.27988077,714.59,712.71,0.25749983]
[1737029567647,0.27988077,714.59,712.72,0.25749983]
[1737029567840,0.27988077,714.59,712.73,0.25749983]
[1737029568045,0.27988077,714.59,712.74,0.25749983]
[1737029568351,0.27988077,714.59,712.75,0.25749983]
[1737029568646,0.27988077,714.59,712.76,0.25749983]
[1737029568847,0.27988077,714.59,712.77,0.25749983]
[1737029569044,0.27988077,714.59,712.78,0.25749983]
[1737029569241,0.27988077,714.59,712.79,0.25749983]
[1737029569552,0.27988077,714.59,712.8,0.2574826]
[1737029569848,0.27988077,714.59,712.81,0.2574826]
[1737029570042,0.27988077,714.59,712.71,0.2574826]
[1737029570247,0.27988077,714.59,712.77,1.03322869]
[1737029570448,0.27988077,714.59,712.78,0.85123471]
[1737029571457,0.27988077,714.59,712.79,0.85123471]
[1737029571641,0.27988077,714.59,712.8,0.85123471]
[1737029571843,0.27988077,714.59,712.81,0.85123471]
[1737029572046,0.27988077,714.59,712.82,0.85123471]
[1737029572247,0.27988077,714.59,712.83,0.85109089]
[1737029572448,0.27988077,714.59,712.84,0.85109089]
[1737029572755,0.27988077,714.59,712.69,0.742]
[1737029572756,0.27988077,714.59,712.85,0.85109089]
[1737029572974,0.27988077,714.59,712.86,0.85109089]
[1737029573161,0.27988077,714.59,712.87,0.25748184]
[1737029573362,0.27988077,714.59,712.88,0.25748184]
[1737029573661,0.27988077,714.59,712.89,0.25748184]
[1737029573955,0.27988077,714.59,712.9,0.25748184]
[1737029574146,0.27988077,714.59,712.91,0.25748184]
[1737029574350,0.27988077,714.59,712.92,0.25748184]
[1737029574652,0.27988077,714.59,712.93,0.25748184]
[1737029574855,0.27988077,714.59,712.76,1.03322869]
[1737029575152,0.27988077,714.59,712.77,0.85108229]
[1737029575360,0.27988077,714.59,712.78,0.257468]
[1737029575559,0.27988077,714.59,712.82,1.03322869]
[1737029575747,0.27988077,714.59,712.83,0.85104973]
[1737029575956,0.27988077,714.59,712.84,0.25746488]
[1737029576151,0.27988077,714.59,712.85,0.25746488]
[1737029576351,0.27988077,714.59,712.86,0.25746488]
[1737029576571,0.27988077,714.59,712.87,0.25746488]
[1737029576755,0.27988077,714.59,712.88,0.25746488]
[1737029576952,0.27988077,714.59,712.89,0.25746488]
[1737029577146,0.27988077,714.59,712.9,0.25746488]
[1737029577346,0.27988077,714.59,712.91,0.25746488]
[1737029577547,0.27988077,714.59,712.92,0.25746488]
[1737029577752,0.27988077,714.59,712.88,0.25746488]
[1737029577953,0.27988077,714.59,712.89,0.25747383]
[1737029578148,0.27988077,714.59,712.9,0.25747383]
[1737029578452,0.27988077,714.59,712.91,0.25747383]
[1737029578653,0.27988077,714.59,712.92,0.25747383]
[1737029578855,0.27988077,714.59,712.93,0.25747383]
[1737029579152,0.27988077,714.59,712.94,0.25747383]
[1737029579352,0.27988077,714.59,712.81,0.59339242]
[1737029579353,0.27988077,714.59,712.95,0.25747383]
[1737029579554,0.27988077,714.59,712.96,0.25747383]
[1737029579746,0.27988077,714.59,712.97,0.25747383]
[1737029579947,0.27988077,714.59,712.98,0.25747383]
[1737029580147,0.27988077,714.59,712.99,0.25747383]
[1737029580351,0.27988077,714.59,713.0,0.25747383]
[1737029580553,0.27988077,714.59,713.01,0.25747849]
[1737029580754,0.27988077,714.59,713.01,0.51495734]
[1737029580953,0.27988077,714.59,713.02,0.25748136]
[1737029582452,0.27988077,714.59,713.03,0.51496548]
[1737029582654,0.27988077,714.59,713.04,0.25748175]
[1737029583053,0.27988077,714.59,713.03,0.25748373]
[1737029583361,0.27988077,714.59,713.04,0.25747989]
[1737029584750,0.27988077,714.59,713.05,0.25747989]
[1737029584950,0.27988077,714.59,713.06,0.25747989]
[1737029585154,0.27988077,714.59,713.07,0.25747989]
[1737029585456,0.27988077,714.59,713.08,0.25748231]
[1737029585657,0.27988077,714.59,713.09,0.25748231]
[1737029585861,0.27988077,714.59,712.9,0.85103237]
[1737029586050,0.27988077,714.59,712.91,0.25748231]
[1737029586254,0.27988077,714.59,712.92,0.25748231]
[1737029586551,0.27988077,714.59,712.99,1.03322869]
[1737029586755,0.27988077,714.59,713.0,0.25748231]
[1737029587767,0.27988077,714.59,713.01,0.25748231]
[1737029587957,0.27988077,714.59,713.02,0.25747835]
[1737029588161,0.27988077,714.59,713.03,0.25747835]
[1737029588353,0.27988077,714.59,713.04,0.25747835]
[1737029588557,0.27988077,714.59,713.05,0.25747835]
[1737029588758,0.27988077,714.59,713.06,0.25747835]
[1737029588961,0.27988077,714.59,713.07,0.25747835]
[1737029590262,0.27988077,714.59,713.08,0.25747835]
[1737029590559,0.27988077,714.59,713.09,0.25747835]
[1737029590761,0.27988077,714.59,713.05,1.03322869]
[1737029590762,0.27988077,714.59,713.1,0.25747293]
[1737029590958,0.27988077,714.59,713.11,0.25747293]
[1737029591162,0.27988077,714.59,713.12,0.25747293]
[1737029591361,0.27988077,714.59,713.07,1.03322869]
[1737029591563,0.27988077,714.59,713.08,0.25747329]
[1737029591764,0.27988077,714.59,713.09,0.2804695]
[1737029591965,0.27988077,714.59,713.11,1.03322869]
[1737029592266,0.27988077,714.59,713.12,0.2804577]
[1737029592564,0.27988077,714.59,713.13,0.25747294]
[1737029592961,0.27988077,714.59,713.15,1.03322869]
[1737029593163,0.27988077,714.59,713.16,0.25747294]
[1737029593561,0.27988077,714.59,713.17,0.25747839]
[1737029593763,0.27988077,714.59,713.18,0.25747839]
[1737029593959,0.27988077,714.59,713.3,1.03322869]
[1737029594861,0.27988077,714.59,713.34,1.03322869]
[1737029595666,0.27988077,714.59,713.35,0.257479]
[1737029595876,0.27988077,714.59,713.38,1.03322869]
[1737029596065,0.27988077,714.59,713.39,0.257479]
[1737029596366,0.27988077,714.59,713.38,1.03322869]
[1737029596764,0.27988077,714.59,713.44,1.03322869]
[1737029597668,0.27988077,714.59,713.47,1.03322869]
[1737029598964,0.27988077,714.59,713.52,1.03322869]
[1737029600168,0.27988077,714.59,713.5,1.03322869]
[1737029600869,0.27988077,714.59,713.51,1.03322869]
[1737029602072,0.27988077,714.59,713.43,1.03322869]
[1737029604071,0.27988077,714.59,713.4,1.03322869]
[1737029604971,0.27988077,714.59,713.36,1.03322869]
[1737029605974,0.27988077,714.59,713.33,1.03322869]
[1737029606567,0.27988077,714.59,713.33,2.24722869]
[1737029606875,0.27988077,714.59,713.33,1.214]
[1737029613201,0.27988077,714.59,713.33,2.07]
[1737029614486,1.04304412,714.56,713.33,2.07]
[1737029615584,0.27988077,714.59,713.33,2.07]
[1737029625094,1.04304412,714.56,713.33,2.07]
[1737029625695,0.27989643,714.55,713.33,2.07]
[1737029634424,0.27989643,714.55,713.34,0.25747797]
[1737029634704,0.27989643,714.55,713.21,1.03322869]
[1737029634903,0.27989643,714.55,713.22,0.25747681]
[1737029635102,0.27989643,714.55,713.21,1.03322869]
[1737029635302,0.27989643,714.55,713.34,1.03322869]
[1737029635802,0.27989643,714.55,713.34,1.80522869]
[1737029636000,0.27989643,714.55,713.34,0.772]
[1737029652516,1.04304412,714.43,713.34,0.772]
[1737029653320,1.04304412,714.49,713.34,0.772]
[1737029654415,1.04304412,714.5,713.34,0.772]
[1737029655311,0.27991994,714.49,713.34,0.772]
[1737029660015,1.04304412,714.41,713.34,0.772]
[1737029661021,1.04304412,714.42,713.34,0.772]
[1737029662222,0.27991994,714.49,713.34,0.772]
[1737029662223,1.04304412,714.45,713.34,0.772]
[1737029663024,0.27993953,714.44,713.34,0.772]
[1737029670733,0.27993953,714.44,713.34,1.637]
[1737029683350,1.04304412,714.43,713.34,1.637]
[1737029684140,1.04304412,714.42,713.34,1.637]
[1737029685477,1.04304412,714.39,713.34,1.637]
[1737029686543,0.27995128,714.41,713.34,1.637]
[1737029686743,0.27996304,714.38,713.34,1.637]
[1737029716772,0.27996304,714.38,713.35,0.25746138]
[1737029717171,0.27996304,714.38,713.36,0.25745712]
[1737029717467,1.04304412,714.81,713.18,1.03322869]
[1737029717674,1.04304412,714.84,713.19,0.25745554]
[1737029717865,0.2797868,714.83,713.2,0.25745419]
[1737029718070,0.2797868,714.83,713.21,0.5378765]
[1737029718377,0.2797868,714.83,713.22,1.57110126]
[1737029718672,0.2797868,714.83,713.23,0.25745419]
[1737029720471,0.2797868,714.83,713.24,0.25744595]
[1737029720675,0.2797868,714.83,713.23,0.25744595]
[1737029720868,0.2797868,714.83,713.25,0.28040658]
[1737029721169,0.2797868,714.83,713.26,0.25744595]
[1737029721372,0.2797868,714.83,713.27,0.25744464]
[1737029721683,0.2797868,714.83,713.28,0.25744464]
[1737029721872,0.2797868,714.83,713.29,0.25744464]
[1737029722070,0.2797868,714.83,713.25,0.28040658]
[1737029722071,0.2797868,714.83,713.3,0.25744464]
[1737029722375,0.2797868,714.83,713.31,0.25744464]
[1737029722675,0.2797868,714.83,713.32,0.25744464]
[1737029722872,0.2797868,714.83,713.33,0.25744464]
[1737029723071,0.2797868,714.83,713.34,0.25744464]
[1737029723269,0.2797868,714.83,713.35,0.25744464]
[1737029723574,0.2797868,714.83,713.36,0.25744464]
[1737029723780,0.2797868,714.83,713.37,0.25742445]
[1737029723976,0.2797868,714.83,713.38,0.25742445]
[1737029724275,0.2797868,714.83,713.25,0.28040658]
[1737029724471,0.2797868,714.83,713.26,0.25741703]
[1737029726569,0.2797868,714.83,713.27,0.25742346]
[1737029726776,0.2797868,714.83,713.28,0.25742346]
[1737029726978,0.2797868,714.83,713.25,0.28040658]
[1737029726979,0.2797868,714.83,713.29,0.25742346]
[1737029727177,0.2797868,714.83,713.3,0.25742346]
[1737029727378,0.2797868,714.83,713.31,0.25742346]
[1737029727577,0.2797868,714.83,713.32,0.25742346]
[1737029727873,0.2797868,714.83,713.33,0.25742346]
[1737029728078,0.2797868,714.83,713.25,0.28040658]
[1737029728274,0.2797868,714.83,713.26,0.25742492]
[1737029728875,0.2797868,714.83,713.27,0.25741229]
[1737029729180,0.2797868,714.83,713.28,0.25741229]
[1737029729379,0.2797868,714.83,713.29,0.25741229]
[1737029729579,0.2797868,714.83,713.26,0.25741229]
[1737029729778,0.2797868,714.83,713.27,0.25741229]
[1737029729981,0.2797868,714.83,713.28,0.25741229]
[1737029730280,0.2797868,714.83,713.29,0.25741229]
[1737029730473,0.2797868,714.83,713.25,0.28040658]
[1737029730474,0.2797868,714.83,713.3,0.25741229]
[1737029730680,0.2797868,714.83,713.31,0.25741229]
[1737029730980,0.2797868,714.83,713.32,0.25741229]
[1737029731180,0.2797868,714.83,713.39,1.03322869]
[1737029731373,0.2797868,714.83,713.4,0.25741229]
[1737029731595,0.2797868,714.83,713.41,0.25736114]
[1737029731776,0.2797868,714.83,713.42,0.25736114]
[1737029731980,0.2797868,714.83,713.43,0.25736114]
[1737029732183,0.2797868,714.83,713.44,0.25736114]
[1737029732481,0.2797868,714.83,713.36,1.03322869]
[1737029733136,0.2797868,714.83,713.25,0.28040658]
[1737029733312,0.2797868,714.83,713.26,0.25736325]
[1737029734283,0.2797868,714.83,713.27,0.25737545]
[1737029734488,0.2797868,714.83,713.26,0.25737545]
[1737029734680,0.2797868,714.83,713.27,0.25737545]
[1737029734876,0.2797868,714.83,713.28,0.25737545]
[1737029735177,0.2797868,714.83,713.29,0.25737545]
[1737029735376,0.2797868,714.83,713.3,0.25737545]
[1737029735577,0.2797868,714.83,713.31,0.25737545]
[1737029735777,0.2797868,714.83,713.28,0.809]
[1737029735976,0.2797868,714.83,713.29,0.25737059]
[1737029737681,0.2797868,714.83,713.3,0.25737264]
[1737029737876,0.2797868,714.83,713.31,0.25737264]
[1737029738077,0.2797868,714.83,713.32,0.53775171]
[1737029738382,0.2797868,714.83,713.33,0.25737264]
[1737029739780,0.2797868,714.83,713.34,0.25737267]
[1737029740077,0.2797868,714.83,713.35,0.25737267]
[1737029740287,0.2797868,714.83,713.32,0.28037907]
[1737029740288,0.2797868,714.83,713.36,0.25737267]
[1737029740483,0.2797868,714.83,713.37,0.25737267]
[1737029740682,0.2797868,714.83,713.32,0.28037907]
[1737029740890,0.2797868,714.83,713.33,0.2574105]
[1737029742379,0.2797868,714.83,713.32,0.28037907]
[1737029742582,0.2797868,714.83,713.33,0.25742217]
[1737029742783,0.2797868,714.83,713.32,0.28037907]
[1737029744187,0.2797868,714.83,713.33,0.25745152]
[1737029745180,0.2797868,714.83,713.34,0.2574475]
[1737029745397,0.2797868,714.83,713.32,0.28037907]
[1737029745398,0.2797868,714.83,713.33,0.2574475]
[1737029745585,0.2797868,714.83,713.34,0.2574475]
[1737029745881,0.2797868,714.83,713.32,0.28037907]
[1737029746092,0.2797868,714.83,713.33,0.25744798]
[1737029746881,0.2797868,714.83,713.33,1.52144798]
[1737029747086,0.2797868,714.83,713.34,0.25744798]
[1737029748186,0.2797868,714.83,713.35,0.25744496]
[1737029748390,0.2797868,714.83,713.33,1.264]
[1737029748587,0.2797868,714.83,713.34,0.25744525]
[1737029748787,0.2797868,714.83,713.33,1.264]
[1737029754390,1.04304412,714.74,713.33,1.264]
[1737029755493,1.04304412,714.61,713.33,1.264]
[1737029756994,1.04304412,714.57,713.33,1.264]
[1737029758300,1.04304412,714.67,713.33,1.264]
[1737029759300,1.04304412,714.63,713.33,1.264]
[1737029760300,0.2797868,714.83,713.33,1.264]
[1737029761596,0.2797868,714.83,713.33,2.186]
[1737029770515,0.2797868,714.83,713.34,0.25745117]
[1737029772335,0.2797868,714.83,713.35,0.28036728]
[1737029772512,0.2797868,714.83,713.36,0.25745117]
[1737029773515,0.2797868,714.83,713.35,0.28036728]
[1737029773719,0.2797868,714.83,713.36,0.25739888]
[1737029773909,0.2797868,714.83,713.35,0.28036728]
[1737029774518,0.2797868,714.83,713.36,0.25737818]
[1737029774816,0.2797868,714.83,713.37,0.25739174]
[1737029775016,0.2797868,714.83,713.38,0.25739174]
[1737029775212,0.2797868,714.83,713.35,0.28036728]
[1737029775411,0.2797868,714.83,713.36,0.25740028]
[1737029775810,0.2797868,714.83,713.35,0.28036728]
[1737029776014,0.2797868,714.83,713.36,0.2573978]
[1737029776414,0.2797868,714.83,713.35,0.28036728]
[1737029779217,0.2797868,714.83,713.36,0.25742302]
[1737029779419,0.2797868,714.83,713.35,0.28036728]
[1737029779822,0.2797868,714.83,713.36,0.25742621]
[1737029780421,0.2797868,714.83,713.37,0.25743109]
[1737029780723,0.2797868,714.83,713.38,0.25743109]
[1737029781022,0.2797868,714.83,713.39,0.25743416]
[1737029781216,0.2797868,714.83,713.4,0.25743416]
[1737029781425,0.2797868,714.83,713.41,0.25743416]
[1737029781623,0.2797868,714.83,713.42,0.25743416]
[1737029781818,0.2797868,714.83,713.35,0.28036728]
[1737029782123,0.2797868,714.83,713.36,0.25744866]
[1737029783124,0.2797868,714.83,713.35,0.28036728]
[1737029783322,0.2797868,714.83,713.36,0.2574538]
[1737029784324,0.2797868,714.83,713.35,0.28036728]
[1737029790932,0.2797868,714.83,713.35,1.21136728]
[1737029793557,1.04304412,714.75,713.35,1.21136728]
[1737029793831,0.27982594,714.73,713.35,1.21136728]
[1737029794234,1.32287006,714.73,713.35,1.21136728]
[1737029795132,1.04304412,714.69,713.35,1.21136728]
[1737029795336,0.27984944,714.67,713.35,1.21136728]
[1737029797340,1.32289356,714.67,713.35,1.21136728]
[1737029797747,1.32289356,714.67,713.35,0.931]
[1737029798236,1.04304412,714.64,713.35,0.931]
[1737029799339,1.04304412,714.65,713.35,0.931]
[1737029799839,1.04304412,714.65,713.35,1.76]
[1737029800437,1.04304412,714.66,713.35,1.76]
[1737029800635,0.27986118,714.64,713.35,1.76]
[1737029808650,0.27986118,714.64,713.36,0.25746625]
[1737029810253,0.27986118,714.64,713.35,1.76]
[1737029844575,1.04304412,714.6,713.35,1.76]
[1737029845480,1.04304412,714.3,713.35,1.76]
[1737029846576,1.04304412,714.29,713.35,1.76]
[1737029846777,0.28000224,714.28,713.35,1.76]
[1737029871992,1.32304636,714.28,713.35,1.76]
[1737029873597,1.04304412,714.22,713.35,1.76]
[1737029874098,0.28002968,714.21,713.35,1.76]
[1737029876198,1.3230738,714.21,713.35,1.76]
[1737029877001,1.04304412,714.18,713.35,1.76]
[1737029877606,0.28004536,714.17,713.35,1.76]
[1737029877997,1.04304412,714.13,713.35,1.76]
[1737029879304,0.28004536,714.17,713.35,1.76]
[1737029879305,1.04304412,714.12,713.35,1.76]
[1737029880303,0.28004536,714.17,713.35,1.76]
[1737029880304,1.04304412,714.11,713.35,1.76]
[1737029881203,1.04304412,714.12,713.35,1.76]
[1737029882300,0.28004536,714.17,713.35,1.76]
[1737029896611,1.04304412,714.12,713.35,1.76]
[1737029897515,1.04304412,714.14,713.35,1.76]
[1737029899609,0.28006105,714.13,713.35,1.76]
[1737029912320,1.04304412,714.04,713.35,1.76]
[1737029912619,0.28010027,714.03,713.35,1.76]